Cogmind - Beta 13 *** ADVENTURER MODE // 2024.04.10 @ 21:01:24 Player: Scribs Result: Destroyed by P-80 Master with Gamma Rifle Performance ------------- Evolutions (8) 4000 Regions Visited (16) 3200 Robots Destroyed (128) 640 Value Destroyed (5022) 5022 Prototype IDs (4) 80 Alien Tech Used (0) 0 Bonus (475) 475 TOTAL SCORE: 13417 Bonus ------- High Alert Combat Kills 85 Follower Combat Kills 390 Cogmind --------- Core Integrity 0/1450 Matter 288/300 Energy 90/100 System Corruption 33% Temperature Cool (0) Movement Treading (145) Location -2/Research Parts ------- > --- POWER (4) -------- (None) > --- PROPULSION (8) --- Advanced Heavy Treads (fused) > --- UTILITY (8) ------ Large Storage Unit Advanced Salvage Targeting Computer > --- WEAPON (3) ------- (None) > --- INVENTORY (15) --- Quantum Reactor Quantum Reactor Centrium Leg Medium Matter Pod (0) Advanced Melee Analysis Suite Peak State ------------ > --- POWER ------------ Particle Reactor Quantum Reactor Quantum Reactor Quantum Reactor > --- PROPULSION ------- Advanced Heavy Treads Advanced Heavy Treads Biometal Heavy Treads Impulse Thruster Array > --- UTILITY ---------- Advanced Heat Sink Large Storage Unit Transport Network Coupler Advanced Salvage Targeting Computer Makeshift Transmission Jammer Improved Light Armor Plating Improved Light Armor Plating > --- WEAPON ----------- Quantum Rifle > --- INVENTORY -------- Xenon Bombardment Thruster Xenon Bombardment Thruster Xenon Bombardment Thruster Matter Neutralizer Mini Grenade Launcher [Rating: 135] Favorites ----------- Power Light Antimatter Reactor Engine Improved Ion Engine Power Core Micro Nuclear Core Reactor Light Antimatter Reactor Propulsion Armored Leg Treads Advanced Heavy Treads Leg Armored Leg Flight Unit Xenon Bombardment Thruster Utility Large Storage Unit Device Improved Sensor Array Storage Large Storage Unit Processor Machine Analyzer Protection Improved Light Armor Plating Weapon Scythe Energy Gun Dispersion Rifle Energy Cannon Matter Neutralizer Ballistic Gun Autogun Launcher Mini Grenade Launcher Impact Weapon Powered Hammer Slashing Weapon Scythe Piercing Weapon Makeshift Spear Build | -11 -10 -9 -8 -8 -7 -6 -6 -6 -5 -5 -5 -4 -4 -4 -3 -2 ------- Run | Yrd Mat Mat Mat Sto Fac Fac Was Fac Fac Upp Upp Fac Upp Upp Res Res Slots Evolved 16 | . . 2 2 . 2 2 . . 2 . . 2 . . 2 2 Power 3 | . . . . . 1 . . . . . . . . . 1 1 Propulsion 6 | . . 1 1 . . 1 . . 1 . . . . . 1 1 Utility 6 | . . 1 1 . 1 1 . . 1 . . 1 . . . . Weapon 1 | . . . . . . . . . . . . 1 . . . . Parts Attached 213 | 6 5 14 14 21 20 4 1 1 19 5 . 47 5 12 3 36 Power 40 | 1 2 1 . 2 6 1 1 . 5 . . 8 . 2 1 10 Engine 7 | 1 2 1 . 1 1 . . . . . . . . . . 1 Core 14 | . . . . 1 5 1 . . 5 . . 2 . . . . Reactor 19 | . . . . . . . 1 . . . . 6 . 2 1 9 Propulsion 57 | 2 2 4 6 11 4 1 . . 5 . . 8 . . 1 13 Treads 6 | . . . . . . . . . . . . . . . . 6 Leg 44 | 2 2 4 6 11 4 1 . . 5 . . 8 . . 1 . Wheel . | . . . . . . . . . . . . . . . . . Hover . | . . . . . . . . . . . . . . . . . Flight 7 | . . . . . . . . . . . . . . . . 7 Utility 78 | 1 1 5 5 3 9 2 . 1 7 3 . 21 4 7 . 9 Device 26 | . 1 1 1 2 1 1 . . 4 2 . 10 1 1 . 1 Storage 8 | 1 . 2 1 . . . . . . . . 2 . . . 2 Processor 8 | . . 1 1 . 1 1 . . . . . 2 1 . . 1 Hackware . | . . . . . . . . . . . . . . . . . Protection 36 | . . 1 2 1 7 . . 1 3 1 . 7 2 6 . 5 Artifact . | . . . . . . . . . . . . . . . . . Weapon 38 | 2 . 4 3 5 1 . . . 2 2 . 10 1 3 1 4 Energy Gun 15 | 2 . 1 . . . . . . 2 2 . 6 . . 1 1 Energy Cannon 1 | . . . . . . . . . . . . . . . . 1 Ballistic Gun 3 | . . 3 . . . . . . . . . . . . . . Ballistic Cannon . | . . . . . . . . . . . . . . . . . Launcher 8 | . . . 2 4 . . . . . . . 1 . . . 1 Special Weapon . | . . . . . . . . . . . . . . . . . Impact Weapon 2 | . . . . . 1 . . . . . . 1 . . . . Slashing Weapon 7 | . . . 1 1 . . . . . . . 2 1 2 . . Piercing Weapon 2 | . . . . . . . . . . . . . . 1 . 1 Special Melee Weapon . | . . . . . . . . . . . . . . . . . Unidentified Prototypes 4 | . 1 . . 2 . . . . . . . 1 . . . . Corrupted Parts 1 | . . . . . . . . . . . . 1 . . . . System Corruption 8 | . . . . . . . . . . . . 8 . . . . Parts Lost 78 | . . 3 2 . 2 . . . 7 . . 23 10 . 4 27 Power 14 | . . . . . 1 . . . 1 . . 2 2 . 3 5 Propulsion 22 | . . 1 . . . . . . 3 . . 9 1 . . 8 Utility 25 | . . 1 1 . 1 . . . 2 . . 7 4 . . 9 Weapon 17 | . . 1 1 . . . . . 1 . . 5 3 . 1 5 Highest Loss Streak 17 | . . 2 2 . 1 . . . 3 . . 13 6 . 4 17 To Critical Strikes . | . . . . . . . . . . . . . . . . . Average Slot Usage (%) 83 | . 91 98 90 99 99 100 100 100 87 99 100 87 62 62 42 46 Engine 2 | . 13 11 9 7 1 . . . . . . . . . . . Core 4 | . . . . 1 13 13 10 6 7 11 11 5 . . . . Reactor 3 | . . . . . . . 2 6 2 . . 3 8 10 13 7 Leg 20 | . 28 32 33 35 29 33 33 33 24 35 35 22 3 . 1 . Device 10 | . 6 8 9 11 7 10 13 13 12 16 17 14 12 4 4 6 Storage 6 | . 14 11 9 9 7 6 6 6 5 5 5 5 6 5 4 3 Processor 9 | . . 11 9 9 7 13 13 13 11 11 11 12 13 5 4 6 Protection 7 | . . 1 3 6 13 8 6 6 8 5 5 5 3 21 . 6 Energy Gun 4 | . 28 13 5 . . . . . 3 5 5 7 8 . . 2 Launcher 2 | . . . 7 9 7 6 6 6 1 . . 1 . . . . Impact Weapon 2 | . . . . . 2 6 6 6 5 5 5 4 1 . . . Slashing Weapon 3 | . . . 3 9 4 . . . . . . . 3 9 8 . Naked Turns . | . . . . . . . . . . . . . . . . . Heaviest Build 126 | 11 17 32 38 40 77 77 69 69 89 75 62 94 80 72 69 126 Greatest Support 215 | 20 20 30 42 52 64 79 79 79 99 99 99 109 29 3 25 215 Greatest Overweight (x) 23 | 2 . 1 . 1 1 . . . 1 . . 2 7 23 22 13 Average Overweight (x) 1 | . . . . . . . . . . . . . 2 21 9 . Largest Inventory Capacity 15 | 8 8 15 15 15 15 15 15 15 15 15 15 15 15 15 15 15 Average Capacity 14 | 7 8 8 11 15 15 15 15 15 15 15 15 15 15 15 15 12 Most Carried 15 | 2 8 9 10 15 15 13 14 15 15 15 15 15 15 14 13 15 Average Carried 12 | 1 5 7 8 13 14 12 13 14 13 14 15 13 15 7 11 7 Final Capacity 15 | 8 8 10 15 15 15 15 15 15 15 15 15 15 15 15 15 15 Final Carried 15 | 2 8 8 10 15 14 13 14 15 14 15 15 15 15 12 13 5 Class Distribution -------------------- 61% | Mutant 33% | Scavenger-Mutant Dominant Class ---------------- Mutant | -10/Materials Scavenger-Mutant | -9/Materials Scavenger-Mutant | -8/Materials Mutant | -8/Storage Mutant | -7/Factory Mutant | -6/Factory Mutant | -6/Waste Mutant | -6/Factory Mutant | -5/Factory Scavenger-Mutant | -5/Upper Caves Mutant | -5/Upper Caves Mutant | -4/Factory Scavenger-Mutant | -4/Upper Caves Mutant | -4/Upper Caves Mutant | -3/Research Generator-Mutant | -2/Research Resources | -11 -10 -9 -8 -8 -7 -6 -6 -6 -5 -5 -5 -4 -4 -4 -3 -2 ----------- Run | Yrd Mat Mat Mat Sto Fac Fac Was Fac Fac Upp Upp Fac Upp Upp Res Res Matter Collected 3538 | 239 71 307 280 313 181 47 245 . 136 162 . 817 191 40 92 417 Remotely . | . . . . . . . . . . . . . . . . . Salvage Created 4529 | . 267 884 348 334 176 44 . . 546 101 . 1368 . . 92 369 Parts 234 | . 16 42 24 29 13 3 . . 20 1 . 67 . . 3 16 Haulers Intercepted 1 | . . . 1 . . . . . . . . . . . . . Recyclers Shooed 2 | . . . . . . . . . . . . 2 . . . . Parts Field Recycled . | . . . . . . . . . . . . . . . . . Retrieved Matter . | . . . . . . . . . . . . . . . . . Parts Self-Destructed 5 | . . . . . . . . . . 5 . . . . . . Prevented . | . . . . . . . . . . . . . . . . . Kills | -11 -10 -9 -8 -8 -7 -6 -6 -6 -5 -5 -5 -4 -4 -4 -3 -2 ------- Run | Yrd Mat Mat Mat Sto Fac Fac Was Fac Fac Upp Upp Fac Upp Upp Res Res Combat Hostiles Destroyed 99 | . 7 17 14 6 5 . . . 12 3 . 26 . . 1 8 Melee 15 | . . . . 2 3 . . . 3 . . 5 . . 1 1 Guns 52 | . 7 17 1 . . . . . 6 1 . 15 . . . 5 Cannons 1 | . . . . . . . . . . . . . . . . 1 AOE 22 | . . . 13 4 2 . . . . . . 3 . . . . Classes Destroyed 15 | . 3 5 2 1 1 . . . . 1 . 2 . . . . Worker 7 | . . . 1 5 . 1 . . . . . . . . . . Builder 9 | . . . . 3 . 2 . . . . . 4 . . . . Tunneler 1 | . . . . . . . . . . . . 1 . . . . Hauler 1 | . . . 1 . . . . . . . . . . . . . Recycler 3 | . . 1 . 2 . . . . . . . . . . . . Mechanic 1 | . . . . . . . . . . . . 1 . . . . Operator 1 | . . 1 . . . . . . . . . . . . . . Watcher 6 | . 2 1 1 1 . . . . . . . 1 . . . . Swarmer 25 | . 3 . 4 2 2 . . . 3 2 . 4 . . . 5 Grunt 31 | . 4 12 7 3 . . . . 3 . . 2 . . . . Brawler 1 | . . 1 . . . . . . . . . . . . . . Duelist 1 | . . 1 . . . . . . . . . . . . . . Sentry 16 | . . 3 3 1 1 . . . . . . 6 . . 1 1 Hunter 3 | . . . . . . . . . . 1 . 2 . . . . Programmer 22 | . . . . . 2 . . . 6 . . 12 . . . 2 Best Kill Streak 10 | . 3 8 10 7 2 3 . . 2 1 . 10 . . 1 4 Combat Bots Only 9 | . 3 7 8 3 2 . . . 2 1 . 9 . . 1 4 Max Kills in Single Turn 4 | . 1 1 4 3 2 1 . . 1 1 . 1 . . 1 1 Gunslinging . | . . . . . . . . . . . . . . . . . Exploded 3 | . . . 3 2 2 . . . . . . 1 . . . . Melee 1 | . . . . 1 1 . . . 1 . . 1 . . 1 1 Uniques/NPCs Destroyed . | . . . . . . . . . . . . . . . . . Combat | -11 -10 -9 -8 -8 -7 -6 -6 -6 -5 -5 -5 -4 -4 -4 -3 -2 -------- Run | Yrd Mat Mat Mat Sto Fac Fac Was Fac Fac Upp Upp Fac Upp Upp Res Res Hostile Shots Fired 1303 | . 30 73 37 30 33 . . . 117 104 . 411 82 . 30 356 Missed 355 | . 3 17 8 9 12 . . . 35 24 . 135 26 . 2 84 Damage Taken 13894 | . 191 571 448 218 700 . . . 1099 384 . 3758 674 . 593 5258 Core 2574 | . 33 98 63 28 133 . . . 94 37 . 293 241 . 102 1452 Absorbed by Shields 888 | . . . . 4 . . . . . 143 . 399 227 . . 115 Ignored by Resistances 4554 | . 61 174 125 65 118 . . . 437 560 . 1253 250 . 160 1351 Regen/Repaired (Parts) 32 | . . . . 32 . . . . . . . . . . . . Core Remaining (%) 84 | 100 86 75 . 83 81 . . 100 . . 86 . . 53 92 . Volleys Fired 284 | . 22 63 15 10 1 . . . 27 30 . 84 . . . 32 Largest 2 | . 2 2 2 1 1 . . . 1 1 . 2 . . . 2 Hottest 199 | . 90 90 70 30 30 . . . 63 65 . 176 . . . 199 Shots Fired 422 | . 44 111 23 10 1 . . . 28 30 . 130 7 . . 38 Gun 376 | . 44 111 10 . . . . . 28 30 . 119 7 . . 27 Cannon 11 | . . . . . . . . . . . . . . . . 11 Launcher 35 | . . . 13 10 1 . . . . . . 11 . . . . Special . | . . . . . . . . . . . . . . . . . Kinetic 54 | . . 53 1 . . . . . . . . . . . . . Thermal 327 | . 44 58 9 . . . . . 28 27 . 116 7 . . 38 Explosive 35 | . . . 13 10 1 . . . . . . 11 . . . . Electromagnetic 6 | . . . . . . . . . . 3 . 3 . . . . Robot Hit Streak 29 | . 14 27 9 8 7 . . . 10 5 . 29 . . . 11 Robot Miss Streak 3 | . 3 2 2 1 . . . . 2 2 . 3 . . . 2 Penetration Max . | . . . . . . . . . . . . . . . . . Secondary Targets 2 | . . . . . . . . . . . . 2 . . . . Max Gunslinging Chain 1 | . . . . . . . . . . . . 1 . . . . Shots Hit Robots 416 | . 32 91 18 16 9 3 . . 48 20 . 142 . . 6 31 Core Hits 213 | . 13 36 36 24 4 1 . . 13 5 . 66 . . 3 12 Critical Kills 4 | . . . . . 1 . . . 1 . . 2 . . . . Critical Parts Destroyed 13 | . . . . . . 1 . . 3 1 . 8 . . . . Critical Strikes 37 | . 3 4 . . 2 1 . . 4 3 . 16 . . 2 2 Burn 13 | . 3 4 . . . . . . . 2 . 4 . . . . Destroy 6 | . . . . . . . . . . . . 6 . . . . Smash 11 | . . . . . 1 1 . . 4 1 . 4 . . . . Sever 7 | . . . . . 1 . . . . . . 2 . . 2 2 Melee Attacks 152 | . . . . 26 30 5 . . 31 3 . 48 . . 6 3 Impact 85 | . . . . . 13 5 . . 31 3 . 33 . . . . Slashing 67 | . . . . 26 17 . . . . . . 15 . . 6 3 Piercing . | . . . . . . . . . . . . . . . . . Sneak Attacks 11 | . . . . 3 . 2 . . 3 . . 2 . . . 1 Combat Hostiles 3 | . . . . . . . . . 3 . . . . . . . Follow-up Attacks . | . . . . . . . . . . . . . . . . . Damage Inflicted 13262 | . 381 1250 1324 1024 358 180 . . 1792 380 . 5243 . . 205 1125 Guns 5765 | . 381 1250 93 . . . . . 407 337 . 2645 . . . 652 Cannons 318 | . . . . . . . . . . . . . . . . 318 Explosions 2939 | . . . 1231 703 100 . . . . . . 905 . . . . Melee 4196 | . . . . 309 258 180 . . 1385 43 . 1693 . . 205 123 Ramming 44 | . . . . 12 . . . . . . . . . . . 32 Kinetic 693 | . . 676 17 . . . . . . . . . . . . . Thermal 5380 | . 381 574 76 . . . . . 407 337 . 2635 . . . 970 Explosive 2939 | . . . 1231 703 100 . . . . . . 905 . . . . Electromagnetic 10 | . . . . . . . . . . . . 10 . . . . Impact 3014 | . . . . . 162 180 . . 1385 43 . 1244 . . . . Slashing 1182 | . . . . 309 96 . . . . . . 449 . . 205 123 Piercing . | . . . . . . . . . . . . . . . . . Highest Corruption 32 | . . . . . 2 . . . 5 5 5 27 27 27 . 32 Average Corruption 15 | . . . . . 1 . . . 3 5 5 10 27 27 . 14 Corruption Purged 4 | . . . . . 1 . . . 3 . . . . . . . Corruption Blocked . | . . . . . . . . . . . . . . . . . Effects 273 | . . . . . 4 . . . 11 27 4 56 82 79 . 10 Message Errors 62 | . . . . . 1 . . . 4 8 . 13 19 17 . . Matter Fused 71 | . . . . . . . . . 2 6 2 14 25 22 . . Heat Flow Errors 34 | . . . . . 1 . . . 2 2 1 5 11 10 . 2 Energy Discharges 22 | . . . . . . . . . 1 3 . 6 3 6 . 3 Parts Rejected 3 | . . . . . . . . . . 2 . . 1 . . . Parts Fused 4 | . . . . . 1 . . . . 1 . . 1 . . 1 Data Loss (minor) 35 | . . . . . 1 . . . . 3 1 7 9 14 . . Data Loss (major) 15 | . . . . . . . . . 1 2 . 1 5 6 . . Misfires 12 | . . . . . . . . . 1 . . 4 7 . . . Alerts 7 | . . . . . . . . . . . . 2 1 4 . . Misdirections 7 | . . . . . . . . . . . . 3 . . . 4 Weapon Failures 1 | . . . . . . . . . . . . 1 . . . . Overload Shots . | . . . . . . . . . . . . . . . . . Overflow Damage 1105 | . . . . 32 22 129 . . 441 43 . 405 . . . 33 Projectiles 33 | . . . . . . . . . . . . . . . . 33 Explosions 67 | . . . . . 22 . . . . . . 45 . . . . Melee 1005 | . . . . 32 . 129 . . 441 43 . 360 . . . . Knockbacks 19 | . . . . . . 2 . . 6 1 . 10 . . . . Impact 17 | . . . . . . 2 . . 5 1 . 9 . . . . Kinetic . | . . . . . . . . . . . . . . . . . Secondary 2 | . . . . . . . . . 1 . . 1 . . . . Self-Inflicted Damage 247 | . . . 138 . 18 . . . . . . 91 . . . . Shots 7 | . . . 4 . 1 . . . . . . 2 . . . . Rammed 7 | . . . . . . . . . . . . . . . . 7 Targets Rammed 9 | . . . . 1 . . . . . . . . . . . 8 Kicked 1 | . . . . 1 . . . . . . . . . . . . Crushed 1 | . . . . . . . . . . . . . . . . 1 Highest Temperature 813 | . 273 290 99 . 134 . . . 215 230 158 568 253 272 . 813 Average Temperature 130 | . 96 80 38 . 55 . . . 81 72 87 146 91 109 . 289 Received Heat Transfer 1403 | . 60 330 189 90 18 . . . 93 . . 312 149 . 126 36 Effects 53 | . 1 3 . . . . . . . . . 17 . . . 32 Shutdowns 22 | . . . . . . . . . . . . 5 . . . 17 Energy Bleed 6 | . 1 . . . . . . . . . . 2 . . . 3 Interference 9 | . . 3 . . . . . . . . . 1 . . . 5 Matter Decay 3 | . . . . . . . . . . . . 2 . . . 1 Short Circuit 3 | . . . . . . . . . . . . 2 . . . 1 Damage (minor) 4 | . . . . . . . . . . . . 3 . . . 1 Damage (major) 4 | . . . . . . . . . . . . 2 . . . 2 Damage (core) 2 | . . . . . . . . . . . . . . . . 2 Siege Activations . | . . . . . . . . . . . . . . . . . Robots Corrupted . | . . . . . . . . . . . . . . . . . Combat Hostiles . | . . . . . . . . . . . . . . . . . Parts Fried 12 | . . . . . . 6 . . 4 . . 2 . . . . Impact Corruptions 38 | . . . . . . 5 . . 14 2 . 17 . . . . Robots Melted 4 | . . . . . . . . . . 1 . 2 . . . 1 Combat Hostiles 4 | . . . . . . . . . . 1 . 2 . . . 1 Parts Melted 31 | . 3 3 1 . . . . . 3 1 . 15 . . . 5 Heat Transferred 9693 | . 1250 1904 175 . . . . . 740 888 . 3700 . . . 1036 Parts Sabotaged . | . . . . . . . . . . . . . . . . . Parts Stolen . | . . . . . . . . . . . . . . . . . Parts Stripped . | . . . . . . . . . . . . . . . . . Power Chain Reactions . | . . . . . . . . . . . . . . . . . Alert | -11 -10 -9 -8 -8 -7 -6 -6 -6 -5 -5 -5 -4 -4 -4 -3 -2 ------- Run | Yrd Mat Mat Mat Sto Fac Fac Was Fac Fac Upp Upp Fac Upp Upp Res Res Peak Influence 537 | . 127 331 537 380 102 19 5 2 271 . . 528 . . 30 135 Initial 193 | . . 25 118 193 70 2 5 2 . . . . . . . 14 Average 111 | . 54 148 324 143 31 4 5 2 103 . . 188 . . 1 47 Maximum Alert Level 2 | . . 1 2 1 . . . . 1 . . 2 . . . . Low Security (%) 76 | 100 100 62 25 59 100 100 100 100 86 . . 57 . . 100 100 Level 1 20 | . . 37 45 40 . . . . 13 . . 35 . . . . Level 2 2 | . . . 28 . . . . . . . . 6 . . . . Level 3 . | . . . . . . . . . . . . . . . . . Level 4 . | . . . . . . . . . . . . . . . . . Level 5 . | . . . . . . . . . . . . . . . . . High Security . | . . . . . . . . . . . . . . . . . Max Security . | . . . . . . . . . . . . . . . . . Squads Dispatched 27 | . 2 2 1 4 3 1 . . 2 . . 10 . . . 2 Investigation 4 | . 2 1 . 1 . . . . . . . . . . . . Extermination 10 | . . . . . 2 . . . 2 . . 5 . . . 1 Reinforcement 10 | . . 1 1 3 1 1 . . . . . 2 . . . 1 Assault . | . . . . . . . . . . . . . . . . . Garrison 3 | . . . . . . . . . . . . 3 . . . . Intercept . | . . . . . . . . . . . . . . . . . Searches Triggered . | . . . . . . . . . . . . . . . . . Construction Impeded 2 | . . . . 1 . 1 . . . . . . . . . . Haulers Reinforced . | . . . . . . . . . . . . . . . . . Active Scanning Responses . | . . . . . . . . . . . . . . . . . Cargo Convoy Interrupts . | . . . . . . . . . . . . . . . . . Stealth | -11 -10 -9 -8 -8 -7 -6 -6 -6 -5 -5 -5 -4 -4 -4 -3 -2 --------- Run | Yrd Mat Mat Mat Sto Fac Fac Was Fac Fac Upp Upp Fac Upp Upp Res Res Distress Signals 7 | . . 3 1 1 1 . . . . . . 1 . . . . Communications Jammed . | . . . . . . . . . . . . . . . . . Distress Signals . | . . . . . . . . . . . . . . . . . Times Spotted 170 | . 13 23 18 17 11 . . . 18 5 . 35 10 . 2 18 Peak Tracking Total 9 | . 3 8 8 3 5 . . . 4 4 . 5 9 . 2 6 Tactical Retreats 16 | . . 2 1 . 5 . . . 5 . . 1 1 . . 1 Traps | -11 -10 -9 -8 -8 -7 -6 -6 -6 -5 -5 -5 -4 -4 -4 -3 -2 ------- Run | Yrd Mat Mat Mat Sto Fac Fac Was Fac Fac Upp Upp Fac Upp Upp Res Res Traps Triggered 10 | . 2 1 . . 2 1 . . . . . 1 . . . 3 Indirectly . | . . . . . . . . . . . . . . . . . Trap Hack Attempts . | . . . . . . . . . . . . . . . . . Triggered . | . . . . . . . . . . . . . . . . . Disarmed . | . . . . . . . . . . . . . . . . . Reprogrammed . | . . . . . . . . . . . . . . . . . Reused . | . . . . . . . . . . . . . . . . . Traps Extracted . | . . . . . . . . . . . . . . . . . Installed . | . . . . . . . . . . . . . . . . . Triggered . | . . . . . . . . . . . . . . . . . Machines | -11 -10 -9 -8 -8 -7 -6 -6 -6 -5 -5 -5 -4 -4 -4 -3 -2 ---------- Run | Yrd Mat Mat Mat Sto Fac Fac Was Fac Fac Upp Upp Fac Upp Upp Res Res Machines Disabled 10 | . . . 6 2 . . . . . . . 2 . . . . Max in Single Turn 2 | . . . 2 1 . . . . . . . 1 . . . . Machines Repaired . | . . . . . . . . . . . . . . . . . Machines Dismantled . | . . . . . . . . . . . . . . . . . Machines Sabotaged . | . . . . . . . . . . . . . . . . . Overloaded Fab Kills . | . . . . . . . . . . . . . . . . . Hacking | -11 -10 -9 -8 -8 -7 -6 -6 -6 -5 -5 -5 -4 -4 -4 -3 -2 --------- Run | Yrd Mat Mat Mat Sto Fac Fac Was Fac Fac Upp Upp Fac Upp Upp Res Res Machines Accessed 21 | . 2 3 2 4 8 . . . . . . . 1 . . 1 Terminals 18 | . 2 3 2 3 7 . . . . . . . . . . 1 Fabricators . | . . . . . . . . . . . . . . . . . Repair Stations 1 | . . . . 1 . . . . . . . . . . . . Recycling Units . | . . . . . . . . . . . . . . . . . Scanalyzers . | . . . . . . . . . . . . . . . . . Garrison Access 1 | . . . . . 1 . . . . . . . . . . . Total Hacks 37 | . 4 3 4 10 14 . . . . . . . 1 . . 1 Successful 14 | . 1 2 2 5 3 . . . . . . . 1 . . . Failed 23 | . 3 1 2 5 11 . . . . . . . . . . 1 Catastrophic 3 | . . 1 . . 2 . . . . . . . . . . . Database Lockouts . | . . . . . . . . . . . . . . . . . Manual 1 | . . . . . 1 . . . . . . . . . . . Terminals 30 | . 4 3 4 7 11 . . . . . . . . . . 1 Fabricators . | . . . . . . . . . . . . . . . . . Repair Stations 3 | . . . . 3 . . . . . . . . . . . . Recycling Units . | . . . . . . . . . . . . . . . . . Scanalyzers . | . . . . . . . . . . . . . . . . . Garrison Access 3 | . . . . . 3 . . . . . . . . . . . Terminal Hacks 12 | . 1 2 2 3 3 . . . . . . . 1 . . . Open Door 2 | . . . . 1 . . . . . . . . 1 . . . Branch Access Points 1 | . . . . . 1 . . . . . . . . . . . Emergency Access Points 1 | . . . . . 1 . . . . . . . . . . . Unreport Threat 2 | . . . 1 . 1 . . . . . . . . . . . Maintenance Status 1 | . . 1 . . . . . . . . . . . . . . Zone Layout 5 | . 1 1 1 2 . . . . . . . . . . . . Fabricator Hacks . | . . . . . . . . . . . . . . . . . Repair Station Hacks 2 | . . . . 2 . . . . . . . . . . . . Scan Component 1 | . . . . 1 . . . . . . . . . . . . Repair 1 | . . . . 1 . . . . . . . . . . . . Recycling Unit Hacks . | . . . . . . . . . . . . . . . . . Scanalyzer . | . . . . . . . . . . . . . . . . . Garrison Access Hacks . | . . . . . . . . . . . . . . . . . Unauthorized Hacks . | . . . . . . . . . . . . . . . . . Terminals . | . . . . . . . . . . . . . . . . . Fabricators . | . . . . . . . . . . . . . . . . . Repair Stations . | . . . . . . . . . . . . . . . . . Recycling Units . | . . . . . . . . . . . . . . . . . Scanalyzers . | . . . . . . . . . . . . . . . . . Garrison Access . | . . . . . . . . . . . . . . . . . Data Cores Recovered 2 | . . 1 . 1 . . . . . . . . . . . . Used . | . . . . . . . . . . . . . . . . . Hacking Detections 13 | . 1 2 1 3 5 . . . . . . . . . . 1 Full Trace Events 3 | . . . 1 2 . . . . . . . . . . . . Feedback Events . | . . . . . . . . . . . . . . . . . Feedback Blocked . | . . . . . . . . . . . . . . . . . Robot Schematics Acquired . | . . . . . . . . . . . . . . . . . Robots Built . | . . . . . . . . . . . . . . . . . Authchips . | . . . . . . . . . . . . . . . . . Time . | . . . . . . . . . . . . . . . . . Total Robot Build Rating . | . . . . . . . . . . . . . . . . . Part Schematics Acquired . | . . . . . . . . . . . . . . . . . Parts Built . | . . . . . . . . . . . . . . . . . Authchips . | . . . . . . . . . . . . . . . . . Time . | . . . . . . . . . . . . . . . . . Total Part Build Rating . | . . . . . . . . . . . . . . . . . Parts Repaired 1 | . . . . 1 . . . . . . . . . . . . Time 38 | . . . . 38 . . . . . . . . . . . . Parts Recycled . | . . . . . . . . . . . . . . . . . Recycled Matter . | . . . . . . . . . . . . . . . . . Retrieved Matter . | . . . . . . . . . . . . . . . . . Retrieved Components . | . . . . . . . . . . . . . . . . . Parts Scanalyzed . | . . . . . . . . . . . . . . . . . Part Schematics Acquired . | . . . . . . . . . . . . . . . . . Parts Damaged . | . . . . . . . . . . . . . . . . . Bothacking | -11 -10 -9 -8 -8 -7 -6 -6 -6 -5 -5 -5 -4 -4 -4 -3 -2 ------------ Run | Yrd Mat Mat Mat Sto Fac Fac Was Fac Fac Upp Upp Fac Upp Upp Res Res Used RIF Installer . | . . . . . . . . . . . . . . . . . Robots Hacked . | . . . . . . . . . . . . . . . . . Non-combat . | . . . . . . . . . . . . . . . . . Combat . | . . . . . . . . . . . . . . . . . Robot Hacks Applied . | . . . . . . . . . . . . . . . . . Relay Couplers Released . | . . . . . . . . . . . . . . . . . Fabnet Peak Effective % . | . . . . . . . . . . . . . . . . . Robots Rewired . | . . . . . . . . . . . . . . . . . Allies Hacked . | . . . . . . . . . . . . . . . . . Hacks Repelled . | . . . . . . . . . . . . . . . . . Allies | -11 -10 -9 -8 -8 -7 -6 -6 -6 -5 -5 -5 -4 -4 -4 -3 -2 -------- Run | Yrd Mat Mat Mat Sto Fac Fac Was Fac Fac Upp Upp Fac Upp Upp Res Res Total Allies 11 | . . . . 11 . . . . . . . . . . . . Largest Group 10 | . . . . 10 1 . . . . . . . . . . . Highest-Rated Group 173 | . . . . 173 100 . . . . . . . . . . . Highest-Rated Ally 100 | . . . . 100 100 . . . . . . . . . . . Total Orders . | . . . . . . . . . . . . . . . . . Ally Attacks 71 | . . . . 71 . . . . . . . . . . . . Total Damage 1071 | . . . . 1071 . . . . . . . . . . . . Kills 16 | . . . . 16 . . . . . . . . . . . . Allies Corrupted 1 | . . . . 1 . . . . . . . . . . . . Allies Melted . | . . . . . . . . . . . . . . . . . Intel | -11 -10 -9 -8 -8 -7 -6 -6 -6 -5 -5 -5 -4 -4 -4 -3 -2 ------- Run | Yrd Mat Mat Mat Sto Fac Fac Was Fac Fac Upp Upp Fac Upp Upp Res Res Robot Analysis Total . | . . . . . . . . . . . . . . . . . Derelict Logs Recovered 4 | . . . . . . . . . . 2 . . 2 . . . Drone Launches . | . . . . . . . . . . . . . . . . . Drone Recoveries . | . . . . . . . . . . . . . . . . . Exploration | -11 -10 -9 -8 -8 -7 -6 -6 -6 -5 -5 -5 -4 -4 -4 -3 -2 ------------- Run | Yrd Mat Mat Mat Sto Fac Fac Was Fac Fac Upp Upp Fac Upp Upp Res Res Turns Passed 14116 | 63 523 734 306 1634 1813 180 144 25 1064 926 85 2095 1877 1650 291 706 Spaces Moved 6354 | 45 327 363 195 655 1090 137 120 20 453 687 71 939 727 145 47 333 Core 420 | 11 . . . . . . . . . . . . 239 145 17 8 Treads 151 | . . . . . . . . . . . . . . . . 151 Legs 5652 | 34 327 363 195 655 1090 137 120 20 453 687 71 939 488 . 30 43 Wheels . | . . . . . . . . . . . . . . . . . Hover . | . . . . . . . . . . . . . . . . . Flight 131 | . . . . . . . . . . . . . . . . 131 Fastest Speed 35 | 50 120 120 112 112 112 118 118 118 116 121 121 120 200 950 190 35 Average Speed 173 | 116 120 120 118 118 138 118 118 118 164 121 121 145 257 1132 578 153 Slowest Speed 1200 | 150 120 190 120 190 192 118 118 118 190 121 121 270 400 1200 1150 700 Overloaded Moves . | . . . . . . . . . . . . . . . . . Propulsion Burnouts . | . . . . . . . . . . . . . . . . . Robots Hopped . | . . . . . . . . . . . . . . . . . Cave-ins Triggered 1 | . . . . . 1 . . . . . . . . . . . Exploration Rate (%) 28 | 3 39 31 18 61 28 5 75 2 7 75 13 22 69 25 2 9 Regions Visited 16 Branch Regions 5 Pre-discovered Areas 3 | . . . . . . . . . . 1 . . 2 . . . Known Exits Taken 3 | . . 1 1 1 . . . . . . . . . . . . Unknown Exits Taken 11 | 1 1 . . . 1 . . 1 1 1 1 1 1 1 1 . Scrap Searched 7 | . . . . . . . . . . 3 . . 3 1 . . Spaces Dug 50 | . . . . 13 22 2 . . 3 2 . 8 . . . . Terrain Destroyed 479 | . . . 122 78 27 2 . . 3 2 . 242 . . . 3 Melee 50 | . . . . 13 22 2 . . 3 2 . 8 . . . . Projectile 4 | . . . . . . . . . . . . 1 . . . 3 AOE 425 | . . . 122 65 5 . . . . . . 233 . . . . Terrain Rammed . | . . . . . . . . . . . . . . . . . Walls Destroyed . | . . . . . . . . . . . . . . . . . Machines Disabled . | . . . . . . . . . . . . . . . . . Actions | -11 -10 -9 -8 -8 -7 -6 -6 -6 -5 -5 -5 -4 -4 -4 -3 -2 --------- Run | Yrd Mat Mat Mat Sto Fac Fac Was Fac Fac Upp Upp Fac Upp Upp Res Res Total 8786 | 52 418 560 244 1465 1346 146 122 21 684 746 70 1482 737 162 56 475 Wait 1578 | . 43 104 13 721 182 . . . 148 16 . 331 1 . . 19 Move 6339 | 44 326 362 194 654 1089 137 119 19 452 686 70 938 726 144 46 333 Hop . | . . . . . . . . . . . . . . . . . Pick Up 78 | 2 11 7 3 12 10 . 1 1 3 3 . 16 . . 1 8 Fast Attach 77 | 6 3 4 3 2 3 . . . 6 2 . 14 5 3 2 24 Attach 62 | . . 5 4 3 4 2 . . 4 2 . 17 . 9 1 11 Detach 32 | . 2 3 3 2 1 . . . 1 1 . 4 1 6 . 8 Swap 74 | . 2 5 7 16 13 2 1 1 9 1 . 16 . . . 1 Drop 78 | . 9 7 2 18 13 . . . 3 2 . 14 4 . . 6 Fire 284 | . 22 63 15 10 1 . . . 27 30 . 84 . . . 32 Melee 152 | . . . . 26 30 5 . . 31 3 . 48 . . 6 3 Ram . | . . . . . . . . . . . . . . . . . Kick 1 | . . . . 1 . . . . . . . . . . . . Crush 8 | . . . . . . . . . . . . . . . . 8 Escape Stasis 22 | . . . . . . . . . . . . . . . . 22 Rewire 1 | . . . . . . . 1 . . . . . . . . . Trap . | . . . . . . . . . . . . . . . . . Miscellaneous . | . . . . . . . . . . . . . . . . . Route ------- -11/Scrapyard -10/Materials -9/Materials -8/Materials -8/Storage -7/Factory (discovered 3 exits: [*Fac] / Low x2) -6/Factory -6/Waste -6/Factory -5/Factory -5/Upper Caves -5/Upper Caves -4/Factory -4/Upper Caves -4/Upper Caves -3/Research -2/Research History --------- Turn | Location | Event 20 | -11/Scrapyard | Discovered new exit (range 15) 64 | -11/Scrapyard | Entered Materials 381 | -10/Materials | Build established: Mutant 544 | -10/Materials | Discovered new exit (range 13) 587 | -10/Materials | Entered another Materials area 587 | -9/Materials | Evolved 2 slots: Propulsion x1, Utility x1 883 | -9/Materials | Build established: Scavenger-Mutant 951 | -9/Materials | Destroyed 7 combat bots 1312 | -9/Materials | Discovered new exit (range 6) 1317 | -9/Materials | Identified exit to Materials 1321 | -9/Materials | Entered another Materials area 1321 | -8/Materials | Evolved 2 slots: Propulsion x1, Utility x1 1443 | -8/Materials | Destroyed 8 combat bots 1555 | -8/Materials | Discovered new exit (range 5) 1615 | -8/Materials | Identified exit to Storage 1627 | -8/Materials | Entered Storage 1741 | -8/Storage | Repaired VSS Leg? 1967 | -8/Storage | Build established: Mutant 2526 | -8/Storage | Assisted by bots powering up and referring to "LRC-V3" 2867 | -8/Storage | Lost 6 allies 3108 | -8/Storage | Build established: Scavenger-Mutant 3109 | -8/Storage | Met 01-MTF 3189 | -8/Storage | Discovered new exit (range 16) 3260 | -8/Storage | Identified exit to Factory 3261 | -8/Storage | Entered Factory 3261 | -7/Factory | Accompanied by 1 ally (01-MTF) 3261 | -7/Factory | Evolved 2 slots: Power x1, Utility x1 3266 | -7/Factory | 01-MTF left 3965 | -7/Factory | Build established: Mutant 5025 | -7/Factory | Crushed by falling debris 5040 | -7/Factory | Identified exit to Lower Caves 5053 | -7/Factory | Discovered new exit (range 15) 5074 | -7/Factory | Entered another Factory area 5074 | -6/Factory | Evolved 2 slots: Propulsion x1, Utility x1 5254 | -6/Factory | Sucked down chute 5254 | -6/Factory | Entered Waste 5254 | -6/Waste | The area was eerily silent 5363 | -6/Waste | Discovered new exit (range 12) 5398 | -6/Waste | Entered Factory 5398 | -6/Factory | Discovered new exit (range 16) 5423 | -6/Factory | Entered another Factory area 5423 | -5/Factory | Evolved 2 slots: Propulsion x1, Utility x1 6057 | -5/Factory | Lost 3 parts (1p1n1u) 6416 | -5/Factory | Discovered new exit (range 5) 6487 | -5/Factory | Entered Upper Caves 6653 | -5/Upper Caves | Learned Factory emergency access door positions 6658 | -5/Upper Caves | Build established: Scavenger-Mutant 7403 | -5/Upper Caves | Discovered new exit (range 8) 7413 | -5/Upper Caves | Entered another Upper Caves area 7419 | -5/Upper Caves | Build established: Mutant 7493 | -5/Upper Caves | Discovered new exit (range 4) 7498 | -5/Upper Caves | Entered Factory 7498 | -4/Factory | Evolved 2 slots: Utility x1, Weapon x1 8461 | -4/Factory | Lost 4 parts (1p2u1w) 8556 | -4/Factory | Garrison activated, responded to threat 8558 | -4/Factory | Lost 3 parts (1n2u) 8621 | -4/Factory | Destroyed 9 combat bots 8776 | -4/Factory | Build established: Scavenger-Mutant 8894 | -4/Factory | System corruption reached 10% 9021 | -4/Factory | Lost 13 parts (1p6n2u4w) 9316 | -4/Factory | Build established: Mutant 9454 | -4/Factory | Discovered new exit (range 9) 9593 | -4/Factory | Entered Upper Caves 9831 | -4/Upper Caves | Build established: Scavenger-Mutant 9913 | -4/Upper Caves | Learned location of Testing (-3) 10616 | -4/Upper Caves | Learned location of Quarantine (-2) 10821 | -4/Upper Caves | Spotted B-86 Titan 11133 | -4/Upper Caves | Build established: Mutant 11443 | -4/Upper Caves | Discovered new exit (range 10) 11447 | -4/Upper Caves | Attracted the attention of an 0b10 outpost 11470 | -4/Upper Caves | Entered another Upper Caves area 11501 | -4/Upper Caves | Lost 6 parts (1p3u2w) 13072 | -4/Upper Caves | Discovered new exit (range 6) 13120 | -4/Upper Caves | Entered Research 13120 | -3/Research | Evolved 2 slots: Power x1, Propulsion x1 13377 | -3/Research | Discovered new exit (range 5) 13411 | -3/Research | Entered another Research area 13411 | -2/Research | Evolved 2 slots: Power x1, Propulsion x1 13434 | -2/Research | Lost 4 parts (3p1w) 13603 | -2/Research | Lost 8 parts (2p2n2u2w) 13997 | -2/Research | Core integrity fell below 50% 14023 | -2/Research | System corruption reached 10% 14073 | -2/Research | Core integrity fell below 20% 14102 | -2/Research | System corruption reached 30% 14117 | -2/Research | Destroyed by P-80 Master with Gamma Rifle Last Messages --------------- Field strength at 90. Field strength at 85. Xenon Bombardment Thruster destroyed. Field strength at 64. Field strength at 58. Field strength at 52. Field strength at 36. Field strength at 30. Field strength at 24. Stasis field depleted. Triggered Stasis Trap. A bubble of rippling energy engulfs the area. Field strength at 94. Field strength at 68. Field strength at 62. ALERT: Hostiles spotted, dispatching reinforcements to Terminal R017. Field strength at 2. System corrupted: Adv. Heavy Treads fused. Stasis field depleted. Map ----- +----------------------------------------------------+ | #?# # """"" ##""" #?? #????????????? | | #?# # """ ##""" #?# #????????????? | | #?# # ## #? +????????????? | | #?# # ## #?T #????????????? | | #?# # ## #?# #????????????? | | #### #####+###########+###### #????????????? | | # #????????????? | | # #????????????? | | # #????????????? | | # """ #????????????? | | " # """ ###+######k######+#########???????? | | " # """ # ??# ! # #???????? | | # # ??# + #???????? | | #### [# ?# """# #???????? | | ???# # ?# p """# !! #???????? | | ???# # ## """# !! #???????? | | ???# "" # ## u # ! #???????? | | ???# """ # ## # #???????? | | ???# "F # ## # #???????? | | ???# ?"" ######## ###########???????? | | ???? ??" ??????###/######?????????????????? | | ?????????? ?????????#p#??????????????????????? | | ??????? ?? ?????????# #??????????????????????? | | ????? ??????????????# #??????????????????????? | | ????? #???????????????# #??????????????????????? | | ???? #???????????????#@#??????????????????????? | | #### #???????????????# #??????????????????????? | | #??????????????? ??????????????????????? | | #???????????????w ??????????????????????? | | #?????????????? ?????????????????????? | | #?????????????? ?????????????????????? | | ########????????????? ! k????????????????????? | | #???????????????????? ????????????????????? | | #??????????????????? #???????????????????? | | #??????????????????? #???????????????????? | | #?????????????????? ###### #???????????????????? | | +?????????????????? ?????? #???????????????????? | | #????????????????? ?????? ???????????????????? | | ##?????????????????##???????"o???????????????????? | | #??????????????????????????? ???????????????????? | | #???????????????????????????????????????????????? | | #???????????????????????????????????????????????? | | #???????????????????????????????????????????????? | | #???????????????????????????????????????????????? | | #???????????????????????????????????????????????? | | #???????????????????????????????????????????????? | | #???????????????????????????????????????????????? | | ##???????????????????????????????????????????????? | | | | | +----------------------------------------------------+ Best States ------------- Heat Dissipation 76 Energy Generation 85 Energy Capacity 1100 Matter Stores 300 Matter Capacity 400 Sight Range 16 Robot Scan Range 16 Terrain Scan Density 10 Jamming Range 14 Additional Mass Support 9 Armor Coverage 900 Resistance: KI 50 Resistance: TH 20 Resistance: EX 20 Resistance: EM 20 Resistance: I 20 Resistance: S 20 Resistance: P 20 Point Defense Rating 80 Melee Speed Boost 30 Evasion (%) 55 Melee Accuracy 8 Core Analysis 6 Recoil Reduction 4 Salvage Targeting 3 Offensive Hacking 10 Item Schematics ----------------- None Robot Schematics ------------------ None Fabricated ------------ Nothing Alien Tech Used ----------------- None Achievements -------------- More Power To You Part-time Excavator Challenges ------------ None Game ------ Seed ExoskeletonFocalDoublenader Manual? 0 Play Time 02:14:53 Cumulative 34.5 hours Start 2024.04.10 @ 17:30:19 End 2024.04.10 @ 21:01:24 Sessions 3 Manual Loads 0 Difficulty Adventurer Special Mode None Game No. 40 Rogue 0 Adventurer 40 Explorer 0 Win Type - Total 0 Types 0/0/0/0/0/0/0/0/0 Lore% 20 Gallery% 34 Achievement% 26 Wizard Run 0 Options --------- Layout 1 ASCII 0 Keyboard 1 Movement Numpad Keybinds 0 Fullscreen 1 Font 24/Smallcaps Map View 50x35 Zoom Use 0% Tactical HUD 0 Map Filters NONE Filters NONE Steam 1 RUN: a67bc610-552c-4803-961d-8b14e2ce25b7